Cogmind - Beta 17 @@@ ROGUE MODE // 2026.08.19 @ 22:00:53 Player: CONM Result: Destroyed by AM-9OF(R) with Subdweller Laser Performance ------------- Evolutions (0) 0 Regions Visited (2) 400 Robots Destroyed (12) 60 Value Destroyed (351) 351 Prototype IDs (1) 20 Alien Tech Used (0) 0 Bonus (5350) 5350 TOTAL SCORE: 6181 Bonus ------- Prayed to X0-1V1 5000 Major X0-1V1 Interference 350 Cogmind --------- Core Integrity 0/250 Matter 295/300 Energy 200/200 System Corruption 7% Temperature Cool (6) Movement Rolling (110) Location -10/Subcaves Parts ------- > --- POWER (1) -------- Subdweller Power Source > --- PROPULSION (2) --- Subdweller Monowheel > --- UTILITY (2) ------ X0-1V1's Piety Tracker > --- WEAPON (2) ------- Mace > --- INVENTORY (5) ---- Small Storage Unit Scrap Shield Subdweller Laser Mining Laser Peak State ------------ > --- POWER ------------ Subdweller Power Source > --- PROPULSION ------- Subdweller Monowheel > --- UTILITY ---------- Makeshift Light Armor Plating X0-1V1's Piety Tracker > --- WEAPON ----------- EM Pulse Gun Mace > --- INVENTORY -------- Small Storage Unit Scrap Shield Subdweller Laser Mining Laser [Rating: 24] Favorites ----------- Power Ion Engine Engine Ion Engine Propulsion Light Treads Treads Light Treads Wheel Compact Wheel Utility X0-1V1's Piety Tracker Device X0-1V1's Piety Tracker Storage Small Storage Unit Protection Makeshift Light Armor Plating Weapon Assault Rifle Energy Gun Subdweller Laser Ballistic Gun Assault Rifle Impact Weapon Mace Build | -11 -10 -10 ------- Run | Yrd Mat Sub Slots Evolved . | . . . Power . | . . . Propulsion . | . . . Utility . | . . . Weapon . | . . . Parts Attached 19 | 7 3 9 Power 3 | 1 . 2 Engine 3 | 1 . 2 Core . | . . . Reactor . | . . . Propulsion 5 | 2 1 2 Treads 2 | 2 . . Leg . | . . . Wheel 3 | . 1 2 Hover . | . . . Flight . | . . . Utility 6 | 2 2 2 Device 3 | 1 1 1 Storage 2 | 1 1 . Processor . | . . . Hackware . | . . . Protection 1 | . . 1 Artifact . | . . . Weapon 5 | 2 . 3 Energy Gun 2 | . . 2 Energy Cannon . | . . . Ballistic Gun 2 | 2 . . Ballistic Cannon . | . . . Launcher . | . . . Special Weapon . | . . . Impact Weapon 1 | . . 1 Slashing Weapon . | . . . Piercing Weapon . | . . . Special Melee Weapon . | . . . Unidentified Prototypes 1 | . 1 . Corrupted Parts 1 | . . 1 System Corruption 5 | . . 5 Parts Lost 5 | . 1 4 Power . | . . . Propulsion 1 | . . 1 Utility 2 | . 1 1 Weapon 2 | . . 2 Highest Loss Streak 2 | . 1 2 To Critical Strikes . | . . . Average Backups 4 | 3 4 4 Power . | . 1 . Propulsion . | . 1 . Utility . | . . 1 Weapon 1 | 1 2 2 Tool/Special . | . . . Unused Backups 2 | . . 2 Power . | . . . Propulsion . | . . . Utility 1 | . . 1 Weapon 1 | . . 1 Tool/Special . | . . . Average Slot Usage (%) 80 | . 95 67 Engine 8 | . 13 5 Treads 13 | . 22 6 Wheel 7 | . 5 9 Device 11 | . 10 11 Storage 9 | . 14 5 Protection 3 | . . 6 Energy Gun 4 | . . 8 Ballistic Gun 16 | . 28 7 Impact Weapon 3 | . . 7 Peak Build Rating 24 | 7 19 24 Average Rating 11 | 5 9 16 On Entrance 8 | . 7 18 Avg Prop Armor Cover (%) 13 | . 12 14 Naked Turns 4 | . . 4 Heaviest Build 90 | 15 90 88 Greatest Support 40 | 40 40 40 Greatest Overweight (x) 5 | 1 5 5 Average Overweight (x) 1 | . 1 1 Largest Inventory Capacity 25 | 8 25 25 Average Capacity 12 | 7 17 12 Most Carried 7 | 4 6 7 Average Carried 4 | 3 4 5 Final Capacity 25 | 8 25 5 Final Carried 5 | 4 5 5 Class Distribution -------------------- 100% | Mutant Dominant Class ---------------- Mutant | -10/Materials Mutant | -10/Subcaves Resources | -11 -10 -10 ----------- Run | Yrd Mat Sub Matter Collected 570 | 275 111 184 Remotely . | . . . Salvage Created 386 | 58 177 151 Parts 24 | 4 13 7 Haulers Intercepted . | . . . Recyclers Shooed . | . . . Parts Field Recycled . | . . . Retrieved Matter . | . . . Parts Self-Destructed 5 | . . 5 Prevented . | . . . Parts Restored . | . . . Kills | -11 -10 -10 ------- Run | Yrd Mat Sub Combat Hostiles Destroyed 9 | . 5 4 Melee 1 | . . 1 Guns 7 | . 5 2 Classes Destroyed 3 | 1 1 1 Tunneler 3 | 3 . . Grunt 5 | . 5 . Subdweller 4 | . . 4 Best Kill Streak 3 | 1 3 2 Combat Bots Only 3 | . 3 2 Max Kills in Single Turn 1 | 1 1 1 Gunslinging . | . . . Exploded . | . . . Melee 1 | . . 1 Uniques/NPCs Destroyed . | . . . Combat | -11 -10 -10 -------- Run | Yrd Mat Sub Hostile Shots Fired 80 | . 18 62 Missed 25 | . 2 23 Hits 55 | . 16 39 Projectile 55 | . 16 39 AOE 5 | . . 5 Damage Taken 1150 | . 212 938 Core 417 | . . 417 Absorbed by Shields . | . . . Core Remaining (%) 100 | 100 . . Volleys Fired 37 | 10 11 16 Largest 2 | 2 2 2 Hottest 100 | 40 40 100 Shots Fired 63 | 20 22 21 Gun 63 | 20 22 21 Cannon . | . . . Launcher . | . . . Special . | . . . Kinetic 56 | 20 22 14 Thermal 3 | . . 3 Explosive . | . . . Electromagnetic 4 | . . 4 Robot Hit Streak 12 | 9 12 7 Robot Miss Streak 2 | 1 1 2 Penetration Max . | . . . Secondary Targets . | . . . Shots Hit Robots 53 | 15 18 20 Core Hits 19 | 3 10 6 Critical Kills . | . . . Critical Parts Destroyed 3 | 1 . 2 Critical Strikes 4 | 1 . 3 Destroy 1 | 1 . . Corrupt 1 | . . 1 Smash 2 | . . 2 Melee Attacks 5 | . . 5 Impact 5 | . . 5 Slashing . | . . . Piercing . | . . . Sneak Attacks . | . . . Combat Hostiles . | . . . Follow-up Attacks . | . . . Damage Inflicted 803 | 193 232 378 Guns 658 | 193 232 233 Cannons . | . . . Explosions . | . . . Melee 145 | . . 145 Ramming . | . . . Kinetic 561 | 193 232 136 Thermal 63 | . . 63 Explosive . | . . . Electromagnetic 34 | . . 34 Impact 145 | . . 145 Slashing . | . . . Piercing . | . . . Highest Corruption 7 | . 2 7 Average Corruption 2 | . 1 2 Corruption Purged . | . . . Corruption Blocked . | . . . Effects 11 | . 4 7 Message Errors 1 | . . 1 Matter Fused 3 | . . 3 Heat Flow Errors 1 | . 1 . Energy Discharges 1 | . 1 . Parts Rejected 1 | . . 1 Data Loss (minor) 1 | . 1 . Data Loss (major) 1 | . . 1 Alerts 1 | . 1 . Weapon Failures 1 | . . 1 Overload Shots . | . . . Overflow Damage 66 | . . 66 Projectiles . | . . . Explosions . | . . . Melee 66 | . . 66 Knockbacks 2 | . . 2 Impact 2 | . . 2 Kinetic . | . . . Secondary . | . . . Self-Inflicted Damage . | . . . Shots . | . . . Rammed . | . . . Targets Rammed . | . . . Kicked . | . . . Crushed . | . . . Highest Temperature 134 | . 134 . Average Temperature 71 | . 71 . Received Heat Transfer 216 | . 96 120 Siege Activations . | . . . Martial Activations . | . . . Shielding Activations . | . . . Robots Disrupted . | . . . Combat Hostiles . | . . . Robots Corrupted 1 | . . 1 Combat Hostiles 1 | . . 1 Parts Fried 1 | . . 1 Impact Corruptions 2 | . . 2 Robots Melted . | . . . Combat Hostiles . | . . . Parts Melted . | . . . Heat Transferred 75 | . . 75 Parts Sabotaged . | . . . Parts Stolen . | . . . Parts Stripped . | . . . Power Chain Reactions . | . . . Alert | -11 -10 -10 ------- Run | Yrd Mat Sub Maximum Alert Level . | . . . Low Security (%) 100 | 100 100 . Level 1 . | . . . Level 2 . | . . . Level 3 . | . . . Level 4 . | . . . Level 5 . | . . . High Security . | . . . Max Security . | . . . Peak Influence 71 | 5 71 . Initial . | . . . Average 12 | . 21 . Influence Increases 151 | 15 136 . Destroy 0b10 Robot/C 100 | . 100 . Destroy 0b10 Robot/NC 15 | 15 . . Destroy Leader 30 | . 30 . Successful Hack 5 | . 5 . Destroy Structure 1 | . 1 . Influence Decreases 151 | 15 75 61 Entered New Map 30 | . . 30 Time Decay 111 | 15 75 21 Lost Part 10 | . . 10 Squads Dispatched 3 | . 3 . Investigation 1 | . 1 . Extermination . | . . . Reinforcement 2 | . 2 . Assault . | . . . Garrison . | . . . Intercept . | . . . Searches Triggered . | . . . Construction Impeded . | . . . Haulers Reinforced . | . . . Active Scanning Responses . | . . . Cargo Convoy Interrupts . | . . . Stealth | -11 -10 -10 --------- Run | Yrd Mat Sub Distress Signals . | . . . Communications Jammed . | . . . Distress Signals . | . . . Times Spotted 29 | . 9 20 Peak Tracking Total 9 | . 4 9 Tactical Retreats . | . . . Traps | -11 -10 -10 ------- Run | Yrd Mat Sub Traps Triggered 2 | . 2 . Indirectly . | . . . Trap Hack Attempts . | . . . Triggered . | . . . Disarmed . | . . . Reprogrammed . | . . . Reused . | . . . Traps Extracted . | . . . Installed . | . . . Triggered . | . . . Machines | -11 -10 -10 ---------- Run | Yrd Mat Sub Machines Disabled . | . . . Max in Single Turn . | . . . Machines Repaired . | . . . Machines Dismantled . | . . . Machines Sabotaged . | . . . Overloaded Fab Kills . | . . . Hacking | -11 -10 -10 --------- Run | Yrd Mat Sub Machines Accessed 2 | . 2 . Terminals 2 | . 2 . Fabricators . | . . . Repair Stations . | . . . Recycling Units . | . . . Scanalyzers . | . . . Garrison Access . | . . . Total Hacks 4 | . 4 . Successful 2 | . 2 . Failed 2 | . 2 . Catastrophic . | . . . Database Lockouts . | . . . Manual 20 | . 20 . Terminals 4 | . 4 . Fabricators . | . . . Repair Stations . | . . . Recycling Units . | . . . Scanalyzers . | . . . Garrison Access . | . . . Terminal Hacks 1 | . 1 . Zone Layout 1 | . 1 . Fabricator Hacks . | . . . Repair Station Hacks . | . . . Recycling Unit Hacks . | . . . Scanalyzer . | . . . Garrison Access Hacks . | . . . Unauthorized Hacks 1 | . 1 . Terminals 1 | . 1 . Search 1 | . 1 . Fabricators . | . . . Repair Stations . | . . . Recycling Units . | . . . Scanalyzers . | . . . Garrison Access . | . . . Data Cores Recovered . | . . . Used . | . . . Hacking Detections 1 | . 1 . Full Trace Events . | . . . Feedback Events . | . . . Feedback Blocked . | . . . Robot Schematics Acquired . | . . . Robots Built . | . . . Authchips . | . . . Time . | . . . Total Robot Build Rating . | . . . Part Schematics Acquired . | . . . Parts Built . | . . . Authchips . | . . . Time . | . . . Total Part Build Rating . | . . . Part Studies Acquired . | . . . Parts Repaired . | . . . Time . | . . . Parts Recycled . | . . . Recycled Matter . | . . . Retrieved Matter . | . . . Retrieved Components . | . . . Parts Scanalyzed . | . . . Part Schematics Acquired . | . . . Parts Damaged . | . . . Bothacking | -11 -10 -10 ------------ Run | Yrd Mat Sub Used RIF Installer . | . . . Robots Hacked . | . . . Non-combat . | . . . Combat . | . . . Robot Hacks Applied . | . . . Relay Couplers Released . | . . . Fabnet Peak Effective % . | . . . Robots Rewired . | . . . Allies Hacked . | . . . Hacks Repelled . | . . . Allies | -11 -10 -10 -------- Run | Yrd Mat Sub Total Allies . | . . . Largest Group . | . . . Highest-Rated Group . | . . . Highest-Rated Ally . | . . . Total Orders . | . . . Ally Attacks . | . . . Total Damage . | . . . Kills . | . . . Allies Corrupted . | . . . Allies Melted . | . . . X0-1V1 Amusement Gains 77 | . 27 50 Good Acts 4 | . . 4 Bad Acts 3 | . 1 2 Intel | -11 -10 -10 ------- Run | Yrd Mat Sub Active Infowar (turns) 198 | 34 164 . Seismic 198 | 34 164 . Robot Analysis Total . | . . . Derelict Logs Recovered 1 | . . 1 Drone Launches . | . . . Drone Recoveries . | . . . Exploration | -11 -10 -10 ------------- Run | Yrd Mat Sub Turns Passed 923 | 249 316 358 Spaces Moved 537 | 131 149 257 Core 102 | 11 . 91 Treads 217 | 120 95 2 Legs . | . . . Wheels 218 | . 54 164 Hover . | . . . Flight . | . . . Fastest Speed 50 | 50 160 50 Average Speed 140 | 152 178 112 Slowest Speed 320 | 160 320 320 Overloaded Moves . | . . . Propulsion Burnouts . | . . . Robots Hopped . | . . . Potential Cave-ins . | . . . Cave-ins Triggered . | . . . Exploration Rate (%) 18 | 7 26 22 Regions Visited 2 Branch Regions 1 Pre-discovered Areas . | . . . Known Exits Taken . | . . . Unknown Exits Taken 2 | 1 1 . Scrap Searched 5 | . . 5 Spaces Dug . | . . . Terrain Destroyed . | . . . Melee . | . . . Projectile . | . . . AOE . | . . . Terrain Rammed . | . . . Walls Destroyed . | . . . Machines Disabled . | . . . Actions | -11 -10 -10 --------- Run | Yrd Mat Sub Total 625 | 157 177 291 Wait 21 | 6 14 1 Move 535 | 130 148 257 Hop . | . . . Pick Up 6 | 4 1 1 Fast Attach 13 | 7 . 6 Attach 3 | . 1 2 Detach . | . . . Swap 5 | . 2 3 Drop . | . . . Fire 37 | 10 11 16 Melee 5 | . . 5 Ram . | . . . Kick . | . . . Crush . | . . . Escape Stasis . | . . . Rewire . | . . . Trap . | . . . Miscellaneous . | . . . Route ------- -11/Scrapyard -10/Materials (discovered 3 exits: [*Mat x2] / [*Sub]) -10/Subcaves (discovered 1 exit: Mat) History --------- Turn | Location | Event 18 | -11/Scrapyard | Discovered new exit (range 15) 250 | -11/Scrapyard | Entered Materials 300 | -10/Materials | Discovered new exit (range 18) 308 | -10/Materials | Build established: Mutant 388 | -10/Materials | Discovered new exit (range 8) 463 | -10/Materials | Discovered new exit (range 10) 478 | -10/Materials | Prayed at D.C.S.S. Altar Unit 566 | -10/Materials | Entered Subcaves 566 | -10/Subcaves | Identified exit to Materials 566 | -10/Subcaves | X0-1V1 revealed exit location to -8/Materials 567 | -10/Subcaves | Approached by a straggling Scientist 572 | -10/Subcaves | Learned location of 1 exit from Materials 644 | -10/Subcaves | X0-1V1 activates XOMVISION 683 | -10/Subcaves | Ambushed by swarm of Subdwellers 686 | -10/Subcaves | Ambushed by Subdwellers from Twisted Machinery 686 | -10/Subcaves | Ambushed by Subdwellers from Twisted Machinery 692 | -10/Subcaves | Ambushed by Subdwellers from Twisted Machinery 695 | -10/Subcaves | Released all parts (6) 699 | -10/Subcaves | Core integrity fell below 50% 699 | -10/Subcaves | Core integrity fell below 20% 717 | -10/Subcaves | X0-1V1 sent hostile G-34 Mercenary (x3) 729 | -10/Subcaves | Lost 4 allies 730 | -10/Subcaves | X0-1V1 rescued you from certain death 752 | -10/Subcaves | Disturbed a concealed Subdweller 924 | -10/Subcaves | Destroyed by AM-9OF(R) with Subdweller Laser Last Messages --------------- 00865_ EJ-WK5(R) destroyed. 00871_ 5L-KAA(R) suffers critical hit (Smash). 00871_ Destroyed Sub. Monowheel. 00871_ 5L-KAA(R) system corrupted by crushing effect. 00871_ 5L-KAA(R) knocked back. 00872_ 5L-KAA(R) system terminally corrupted. 00872_ Disposable Heat Sink fried. 00875_ BQ#7G%FORIYCJ